bitfinex/quotes_BTCUSD_20250314
["timestamp","ask_amount","ask_price","bid_price","bid_amount"]
[1741969004371,0.01454085,84753.0,84745.0,0.0261607]
[1741969004623,0.01850822,84745.0,84744.0,0.247804]
[1741969004817,0.24460338,84765.0,84758.0,0.235965]
[1741969005039,0.00865538,84765.0,84761.0,0.235957]
[1741969005235,0.14812493,84762.0,84761.0,0.235957]
[1741969005444,0.16187724,84762.0,84761.0,0.234957]
[1741969005665,0.011798,84753.0,84724.0,0.0757]
[1741969005862,0.011798,84755.0,84747.0,0.235996]
[1741969006062,0.235982,84752.0,84748.0,0.0235996]
[1741969006290,0.535985,84751.0,84748.0,0.0235996]
[1741969006668,0.3,84751.0,84748.0,0.0235996]
[1741969006830,0.3,84751.0,84750.0,0.235988]
[1741969007261,0.3,84754.0,84747.0,0.235996]
[1741969007600,0.235965,84759.0,84753.0,0.011798]
[1741969007754,0.235965,84759.0,84752.0,0.011799]
[1741969007755,0.01387724,84762.0,84756.0,0.011798]
[1741969007961,0.31387724,84762.0,84757.0,0.235968]
[1741969008142,0.235965,84758.0,84757.0,0.0271364]
[1741969008342,0.0185066,84761.0,84760.0,0.247758]
[1741969009619,0.011798,84756.0,84751.0,0.235983]
[1741969009791,0.011798,84760.0,84754.0,0.235974]
[1741969009972,0.24776,84760.0,84752.0,0.011799]
[1741969010312,0.235963,84759.0,84752.0,0.011799]
[1741969010515,0.235963,84759.0,84753.0,0.0094896]
[1741969010695,0.235962,84760.0,84757.0,0.235968]
[1741969010872,0.0185066,84761.0,84760.0,0.247758]
[1741969011076,0.0185066,84761.0,84760.0,0.23596]
[1741969011284,0.0185066,84761.0,84759.0,0.235963]
[1741969011492,0.235965,84759.0,84756.0,0.235968]
[1741969011688,0.0185066,84761.0,84754.0,0.012798]
[1741969011988,0.0303036,84761.0,84755.0,0.2444815]
[1741969012213,0.011798,84759.0,84755.0,0.0085095]
[1741969012424,0.011798,84756.0,84754.0,0.001]
[1741969012591,0.235974,84756.0,84754.0,0.001]
[1741969012788,0.235968,84757.0,84754.0,0.236977]
[1741969013011,0.235967,84758.0,84755.0,0.235974]
[1741969013243,0.235967,84758.0,84754.0,0.235977]
[1741969013417,0.547759,84760.0,84756.0,0.235969]
[1741969013623,0.3,84760.0,84759.0,0.235963]
[1741969013822,0.0185066,84761.0,84760.0,0.247758]
[1741969014564,0.0188458,84761.0,84760.0,0.23596]
[1741969014755,0.0188458,84761.0,84760.0,0.247758]
[1741969015129,0.0188458,84761.0,84760.0,0.23696]
[1741969015508,0.2665998,84761.0,84760.0,0.001]
[1741969016133,0.0188458,84761.0,84760.0,0.23696]
[1741969016341,0.0188458,84761.0,84760.0,0.2736338]
[1741969016546,0.0188458,84761.0,84760.0,0.2746338]
[1741969018536,0.0003392,84761.0,84760.0,0.2746338]
[1741969020423,5.3e-07,84778.0,84777.0,0.011795]
[1741969020620,5.3e-07,84778.0,84777.0,0.39680722]
[1741969020822,5.3e-07,84778.0,84777.0,0.87496116]
[1741969021030,0.4139,84819.0,84812.0,0.01179]
[1741969021144,0.2361182,84825.0,84820.0,0.235793]
[1741969021344,0.01378777,84822.0,84820.0,0.235793]
[1741969021548,0.01179,84817.0,84805.0,0.235833]
[1741969021753,0.011791,84807.0,84806.0,0.0248758]
[1741969021952,0.247617,84808.0,84806.0,0.0248758]
[1741969022196,0.235828,84808.0,84806.0,0.0248758]
[1741969022404,0.31672321,84820.0,84785.0,0.0761]
[1741969022604,0.01454085,84808.0,84777.0,0.0465]
[1741969022823,0.011792,84798.0,84777.0,0.0465]
[1741969023043,0.011793,84793.0,84786.0,0.011794]
[1741969023167,0.235873,84792.0,84788.0,0.235881]
[1741969023367,0.235873,84792.0,84789.0,0.2854144]
[1741969023571,0.247649,84797.0,84790.0,0.235875]
[1741969023797,0.235866,84794.0,84790.0,0.235875]
[1741969024203,0.247653,84796.0,84792.0,0.235871]
[1741969024401,8.362e-05,84794.0,84793.0,0.235868]
[1741969024614,8.362e-05,84794.0,84793.0,0.247661]
[1741969025212,8.362e-05,84794.0,84792.0,0.02257356]
[1741969025570,8.362e-05,84794.0,84754.0,0.01336072]
[1741969025571,0.011794,84783.0,84754.0,0.01336072]
[1741969025731,0.011795,84780.0,84772.0,0.011796]
[1741969025929,0.235902,84781.0,84775.0,0.011795]
[1741969026109,0.0003392,84778.0,84777.0,0.235912]
[1741969026322,0.0003392,84778.0,84777.0,0.247707]
[1741969026730,0.0003392,84778.0,84772.0,0.011796]
[1741969026731,0.011795,84775.0,84766.0,0.011797]
[1741969027072,0.2362522,84778.0,84770.0,0.011796]
[1741969027366,0.235914,84777.0,84774.0,0.235921]
[1741969027577,0.3121342,84778.0,84775.0,0.235918]
[1741969027775,0.235916,84776.0,84772.0,0.235926]
[1741969027984,0.011797,84764.0,84755.0,0.0763]
[1741969028180,0.247775,84754.0,84746.0,0.011799]
[1741969028393,0.011797,84765.0,84757.0,0.235968]
[1741969028588,0.011797,84765.0,84755.0,0.235972]
[1741969028589,0.3,84760.0,84755.0,0.235972]
[1741969028753,0.3,84760.0,84753.0,0.247776]
[1741969028933,0.3,84760.0,84759.0,0.011798]
[1741969029137,0.3,84760.0,84759.0,0.06231162]
[1741969029336,0.66435585,84776.0,84759.0,0.06231162]
[1741969029337,0.4139,84776.0,84774.0,0.235918]
[1741969029557,0.4139,84776.0,84775.0,0.011795]
[1741969029779,0.43240186,84776.0,84775.0,0.011795]
[1741969030641,0.43240186,84776.0,84774.0,0.235918]
[1741969030840,0.43240186,84776.0,84774.0,0.25751334]
[1741969031299,0.43240186,84776.0,84775.0,0.247713]
[1741969031487,0.43240186,84776.0,84774.0,0.235918]
[1741969031684,0.43240186,84776.0,84775.0,0.001]
[1741969031949,0.68011186,84776.0,84775.0,0.001]
[1741969032087,0.547725,84771.0,84745.0,0.430302]
[1741969032332,0.547725,84771.0,84765.0,0.235945]
[1741969032531,0.3,84771.0,84770.0,0.2596265]
[1741969032731,0.3,84771.0,84769.0,0.011796]
[1741969032732,0.235935,84769.0,84765.0,0.235945]
[1741969032957,0.011796,84770.0,84767.0,0.23594]
[1741969033161,0.535931,84771.0,84767.0,0.23594]
[1741969033339,0.3,84771.0,84764.0,0.011797]
[1741969033552,0.3,84771.0,84770.0,0.247728]
[1741969034008,0.43240186,84776.0,84775.0,0.247713]
[1741969034150,8.6e-07,84776.0,84775.0,0.328013]
[1741969034352,6e-08,84778.0,84777.0,0.247708]
[1741969034556,6e-08,84778.0,84777.0,1.747708]
[1741969035179,6e-08,84778.0,84777.0,0.247708]
[1741969035535,0.01179506,84778.0,84771.0,0.011796]
[1741969035711,6e-08,84778.0,84775.0,0.235917]
[1741969036009,6e-08,84778.0,84776.0,0.235915]
[1741969036214,6e-08,84778.0,84766.0,0.235942]
[1741969036215,0.235927,84772.0,84768.0,0.235935]
[1741969036360,0.247719,84774.0,84770.0,0.235932]
[1741969036556,0.011798,84760.0,84753.0,0.011798]
[1741969036780,0.235943,84766.0,84762.0,0.235952]
[1741969037233,0.14784,84772.0,84771.0,0.247725]
[1741969037394,0.311796,84771.0,84763.0,0.235951]
[1741969037600,0.535929,84771.0,84770.0,0.001]
[1741969037966,0.3,84771.0,84770.0,0.0001696]
[1741969038135,0.3,84771.0,84770.0,0.2361016]
[1741969038334,0.3,84771.0,84770.0,0.0001696]
[1741969038546,0.55443151,84771.0,84770.0,0.0001696]
[1741969039141,0.31850251,84771.0,84770.0,0.0001696]
[1741969039317,0.31850251,84771.0,84770.0,0.2361016]
[1741969039498,0.31850251,84771.0,84770.0,0.0001696]
[1741969039702,0.31850251,84771.0,84770.0,0.25866076]
[1741969039911,0.31850251,84771.0,84770.0,0.0001696]
[1741969039912,0.56897236,84771.0,84770.0,0.0001696]
[1741969040134,0.58076836,84771.0,84770.0,0.0001696]
[1741969040335,0.58176836,84771.0,84770.0,0.0001696]
[1741969042481,0.99566836,84771.0,84770.0,0.0001696]
[1741969042843,0.99466836,84771.0,84770.0,0.0001696]
[1741969043254,0.99666836,84771.0,84770.0,0.0001696]
[1741969043443,1.14446836,84771.0,84770.0,0.0001696]
[1741969043824,0.73440251,84771.0,84770.0,0.0001696]
[1741969044190,0.73440251,84771.0,84770.0,0.32168776]
[1741969044191,0.02050251,84771.0,84770.0,0.32168776]
[1741969044386,0.002,84771.0,84770.0,0.32168776]
[1741969044803,8.366e-05,84778.0,84777.0,0.247708]
[1741969044972,8.366e-05,84778.0,84777.0,0.245708]
[1741969046104,0.235929,84771.0,84770.0,0.0001696]
[1741969046312,0.002,84771.0,84770.0,0.0001696]
[1741969046515,0.56334892,84771.0,84770.0,0.0001696]
[1741969046690,0.549725,84771.0,84770.0,0.0001696]
[1741969046898,0.3,84771.0,84770.0,0.0001696]
[1741969047238,0.31342082,84771.0,84770.0,0.0001696]
[1741969047457,0.03192329,84771.0,84770.0,0.0001696]
[1741969047609,0.26785229,84771.0,84770.0,0.0001696]
[1741969047811,0.03192329,84771.0,84770.0,0.0001696]
[1741969048014,0.26785229,84771.0,84770.0,0.0031696]
[1741969048416,0.03192329,84771.0,84770.0,0.2361016]
[1741969049338,0.03192329,84771.0,84770.0,0.0001696]
[1741969049681,0.56785229,84771.0,84770.0,0.0001696]
[1741969049889,0.33192329,84771.0,84770.0,0.0001696]
[1741969050060,0.33192329,84771.0,84770.0,0.2478976]
[1741969050286,0.31850247,84771.0,84770.0,0.27622636]
[1741969050487,0.01850247,84771.0,84770.0,0.27622636]
[1741969051367,0.01850247,84771.0,84770.0,0.02949836]
[1741969051569,0.01850247,84771.0,84770.0,0.2478976]
[1741969051899,0.00899859,84812.0,84810.0,0.011791]
[1741969052109,0.00899859,84812.0,84776.0,0.3]
[1741969052110,0.011792,84802.0,84796.0,0.0818]
[1741969052325,0.23584,84804.0,84800.0,0.235848]
[1741969052525,0.235846,84801.0,84797.0,0.2699797]
[1741969052728,0.00041682,84807.0,84800.0,0.011792]
[1741969052928,0.01220782,84807.0,84797.0,0.011792]
[1741969053157,0.01849578,84801.0,84800.0,0.011792]
[1741969053630,0.01849578,84801.0,84799.0,0.247642]
[1741969053836,0.01849578,84801.0,84800.0,0.011792]
[1741969055202,0.00041682,84807.0,84806.0,0.247623]
[1741969057107,0.00041682,84807.0,84806.0,0.248623]
[1741969057562,8.2e-07,84807.0,84806.0,0.327623]
[1741969057761,0.0008,84829.0,84828.0,0.011788]
[1741969057942,0.00092502,84829.0,84828.0,0.011788]
[1741969058545,0.01941497,84829.0,84828.0,0.011788]
[1741969058960,0.011788,84825.0,84815.0,0.01179]
[1741969059183,0.235773,84828.0,84821.0,0.235789]
[1741969059184,0.235771,84828.0,84821.0,0.235789]
[1741969059385,0.01941497,84829.0,84828.0,0.003]
[1741969060311,0.01941497,84829.0,84828.0,0.014788]
[1741969060750,0.01941497,84829.0,84828.0,0.011788]
[1741969061318,0.01941497,84829.0,84826.0,0.235775]
[1741969061581,0.01975417,84829.0,84828.0,0.011788]
[1741969061774,0.01975417,84829.0,84828.0,0.012788]
[1741969062665,0.01975417,84829.0,84828.0,0.09416678]
[1741969063021,1.7e-07,84829.0,84828.0,0.092988]
[1741969063152,1.7e-07,84829.0,84828.0,0.1189247]
[1741969063890,1.7e-07,84829.0,84828.0,0.1179247]
[1741969064109,1.7e-07,84829.0,84828.0,0.1229247]
[1741969064297,1.7e-07,84829.0,84828.0,0.1279247]
[1741969064499,1.7e-07,84829.0,84828.0,0.1229247]
[1741969064719,1.7e-07,84829.0,84828.0,0.1179247]
[1741969064919,1.7e-07,84829.0,84828.0,0.0309367]
[1741969065121,1.7e-07,84829.0,84828.0,0.0427247]
[1741969065503,1.7e-07,84829.0,84828.0,0.04390344]
[1741969065821,1.7e-07,84829.0,84828.0,0.42020337]
[1741969066017,1.7e-07,84829.0,84828.0,0.5198247]
[1741969066526,1.7e-07,84829.0,84828.0,0.5148247]
[1741969066862,1.7e-07,84829.0,84828.0,0.7055957]
[1741969067148,1.7e-07,84829.0,84828.0,0.7555957]
[1741969067356,1.7e-07,84829.0,84828.0,0.7455957]
[1741969067604,1.7e-07,84829.0,84828.0,0.7005957]
[1741969067814,1.7e-07,84829.0,84828.0,0.4065957]
[1741969068018,1.7e-07,84829.0,84828.0,0.4015957]
[1741969068221,1.7e-07,84829.0,84828.0,0.4075957]
[1741969068972,1.7e-07,84829.0,84828.0,0.4015957]
[1741969069176,1.7e-07,84829.0,84828.0,0.3955957]
[1741969069590,1.7e-07,84829.0,84828.0,0.4015957]
[1741969069993,1.7e-07,84829.0,84828.0,0.3955957]
[1741969070194,1.7e-07,84829.0,84828.0,0.4015957]
[1741969070415,1.7e-07,84829.0,84828.0,0.4075957]
[1741969070964,1.7e-07,84829.0,84828.0,0.4015957]
[1741969071112,1.7e-07,84829.0,84828.0,1.9075957]
[1741969071539,1.7e-07,84829.0,84828.0,0.5551557]
[1741969071920,1.7e-07,84829.0,84828.0,0.2854957]
[1741969072925,1.7e-07,84829.0,84828.0,0.2796652]
[1741969073483,1.7e-07,84829.0,84828.0,0.2746652]
[1741969074031,1.7e-07,84829.0,84828.0,0.2736652]
[1741969074235,1.7e-07,84829.0,84828.0,0.2746652]
[1741969074435,1.7e-07,84829.0,84828.0,0.2776652]
[1741969074643,1.7e-07,84829.0,84828.0,0.2736652]
[1741969075031,1.7e-07,84829.0,84828.0,0.2776652]
[1741969075438,1.7e-07,84829.0,84828.0,0.2736652]
[1741969076059,1.7e-07,84829.0,84828.0,0.2776652]
[1741969076582,1.7e-07,84829.0,84828.0,0.2736652]
[1741969076802,1.7e-07,84829.0,84828.0,0.2856652]
[1741969077923,0.0003394,84850.0,84828.0,0.2856652]
[1741969077924,0.3,84852.0,84849.0,0.235712]
[1741969078107,0.3,84852.0,84850.0,0.04617213]
[1741969078411,0.311785,84852.0,84848.0,0.235714]
[1741969078595,0.235711,84850.0,84846.0,0.23572]
[1741969078892,0.235715,84849.0,84845.0,0.235723]
[1741969079101,0.235721,84846.0,84842.0,0.235729]
[1741969079359,0.011785,84849.0,84846.0,0.235721]
[1741969079566,0.23571,84850.0,84846.0,0.235721]
[1741969079769,0.247501,84848.0,84843.0,0.0483259]
[1741969079961,0.247512,84844.0,84843.0,0.0483259]
[1741969080165,0.247512,84844.0,84839.0,0.235739]
[1741969080166,0.235726,84844.0,84840.0,0.235735]
[1741969080288,0.235717,84848.0,84844.0,0.235725]
[1741969080483,0.31454085,84852.0,84847.0,0.235717]
[1741969080941,0.31454085,84852.0,84847.0,0.235718]
[1741969081142,0.32632585,84852.0,84843.0,0.012786]
[1741969081342,0.235708,84851.0,84848.0,0.235715]
[1741969081520,0.00012495,84856.0,84852.0,0.235704]
[1741969081721,0.01454085,84855.0,84853.0,0.2357]
[1741969082144,0.30012495,84856.0,84855.0,0.24748]
[1741969082549,0.30012495,84856.0,84855.0,0.235696]
[1741969082750,0.30012495,84856.0,84854.0,0.0483189]
[1741969082751,0.3,84855.0,84854.0,0.0483189]
[1741969082998,0.011784,84854.0,84849.0,0.23571]
[1741969083154,0.3,84853.0,84849.0,0.23571]
[1741969083361,0.3,84853.0,84828.0,0.0001695]
[1741969083362,0.011785,84850.0,84839.0,0.011787]
[1741969083570,0.011786,84844.0,84828.0,0.0001695]
[1741969083782,0.011786,84841.0,84828.0,0.0001695]
[1741969084117,0.3,84846.0,84840.0,0.235737]
[1741969084347,0.011786,84845.0,84840.0,0.235737]
[1741969084518,0.3,84844.0,84842.0,0.235731]
[1741969084739,0.535726,84844.0,84841.0,0.235735]
[1741969085072,0.235729,84843.0,84841.0,0.235734]
[1741969085268,0.311786,84844.0,84842.0,0.235729]
[1741969085269,0.3,84844.0,84842.0,0.235729]
[1741969085671,0.3,84845.0,84842.0,0.235729]
[1741969085913,0.3,84845.0,84839.0,0.011787]
[1741969086114,0.3,84845.0,84844.0,0.235726]
[1741969086337,0.00012495,84856.0,84855.0,0.235696]
[1741969086540,0.00012495,84856.0,84855.0,0.24748]
[1741969087826,0.00012495,84856.0,84855.0,0.24948]
[1741969089445,0.00012495,84856.0,84855.0,0.25048]
[1741969089652,0.00012495,84856.0,84855.0,0.29429883]
[1741969090050,3.6e-07,84865.0,84864.0,0.247454]
[1741969090472,0.01848309,84865.0,84864.0,0.247454]
[1741969090704,0.01848309,84865.0,84864.0,0.329954]
[1741969090856,0.01848309,84865.0,84864.0,0.358244]
[1741969092106,0.01848309,84865.0,84864.0,0.361244]
[1741969092809,0.01848309,84865.0,84864.0,0.409744]
[1741969093217,0.01848309,84865.0,84864.0,0.407744]
[1741969093619,0.01848309,84865.0,84864.0,0.410744]
[1741969094009,9e-08,84869.0,84868.0,0.247443]
[1741969094850,9e-08,84869.0,84868.0,1.747443]
[1741969095586,9e-08,84869.0,84868.0,1.753443]
[1741969096380,0.00024038,84879.0,84878.0,0.247413]
[1741969096576,0.00024038,84879.0,84878.0,0.394853]
[1741969096784,0.00024038,84879.0,84878.0,0.423143]
[1741969097695,0.00024038,84879.0,84878.0,0.428143]
[1741969098075,0.00024038,84879.0,84878.0,0.280703]
[1741969098755,0.01871782,84879.0,84878.0,0.280703]
[1741969100634,0.01871782,84879.0,84878.0,0.285703]
[1741969103483,0.01871782,84879.0,84878.0,0.433063]
[1741969105003,0.235576,84898.0,84888.0,0.01178]
[1741969105158,0.0132919,84896.0,84894.0,0.235587]
[1741969105359,0.01847767,84897.0,84894.0,0.235587]
[1741969105566,0.235582,84896.0,84893.0,0.235589]
[1741969105991,0.235579,84897.0,84894.0,0.235586]
[1741969106191,0.41431667,84899.0,84898.0,0.235576]
[1741969107214,0.42730913,84899.0,84898.0,0.247354]
[1741969107804,0.42730913,84899.0,84898.0,0.235576]
[1741969108017,0.42730913,84899.0,84897.0,0.235579]
[1741969108430,0.44578443,84899.0,84897.0,0.235579]
[1741969108731,0.44578443,84899.0,84898.0,0.04381883]
[1741969108919,0.44578443,84899.0,84898.0,0.27939483]
[1741969109337,0.44595383,84899.0,84898.0,0.27939483]
[1741969109780,0.44595383,84899.0,84898.0,0.29117283]
[1741969110321,0.03205383,84899.0,84898.0,0.29117283]
[1741969110673,0.235581,84897.0,84893.0,0.235588]
[1741969110865,0.235581,84897.0,84883.0,0.01178]
[1741969110866,0.011778,84897.0,84883.0,0.01178]
[1741969111064,0.011778,84897.0,84888.0,0.235602]
[1741969111291,0.011781,84882.0,84865.0,0.011783]
[1741969111505,0.235621,84882.0,84878.0,0.23563]
[1741969111704,0.235621,84882.0,84874.0,0.011782]
[1741969111705,0.01178,84883.0,84874.0,0.011782]
[1741969111916,0.2474,84883.0,84880.0,0.235626]
[1741969112143,0.25410012,84882.0,84878.0,0.23563]
[1741969112324,0.03025912,84882.0,84878.0,0.235632]
[1741969112542,0.235627,84880.0,84876.0,0.235635]
[1741969113000,0.247408,84880.0,84875.0,0.23564]
[1741969113205,0.247408,84880.0,84877.0,0.235634]
[1741969113401,0.247408,84880.0,84878.0,0.0483061]
[1741969113788,0.247408,84880.0,84878.0,0.002]
[1741969114060,0.01847812,84882.0,84878.0,0.002]
[1741969114258,0.01847812,84882.0,84881.0,0.247404]
[1741969114431,0.235578,84898.0,84890.0,0.247378]
[1741969114660,0.235584,84896.0,84891.0,0.235595]
[1741969114824,0.235584,84896.0,84885.0,0.01178]
[1741969114825,0.011779,84892.0,84885.0,0.01178]
[1741969115044,0.23559,84894.0,84890.0,0.235598]
[1741969115269,0.23559,84894.0,84885.0,0.01178]
[1741969115628,0.23561,84886.0,84883.0,0.235618]
[1741969115850,0.23561,84886.0,84883.0,0.026318]
[1741969116043,0.247402,84882.0,84881.0,0.002]
[1741969116802,0.235638,84876.0,84870.0,0.011782]
[1741969116929,0.23564,84876.0,84870.0,0.011782]
[1741969117270,0.235635,84877.0,84874.0,0.235642]
[1741969117476,0.01847912,84875.0,84872.0,0.235643]
[1741969117980,0.01847912,84875.0,84871.0,0.02713458]
[1741969117981,0.25412012,84875.0,84871.0,0.02713458]
[1741969118314,0.25412012,84875.0,84869.0,0.0003388]
[1741969118315,0.56197685,84870.0,84869.0,0.0003388]
[1741969119683,0.235685,84859.0,84856.0,0.2140298]
[1741969120034,0.011784,84860.0,84854.0,0.235696]
[1741969120252,0.011784,84860.0,84849.0,0.25571]
[1741969120253,0.011784,84858.0,84849.0,0.25571]
[1741969120482,0.011784,84860.0,84856.0,0.235692]
[1741969120483,0.0184823,84859.0,84856.0,0.235692]
[1741969121185,0.0184823,84859.0,84856.0,0.01]
[1741969121359,0.03177494,84859.0,84857.0,0.23569]
[1741969121589,0.03177494,84859.0,84858.0,0.2979671]
[1741969121792,0.0184823,84859.0,84858.0,0.2979671]
[1741969123618,0.0184823,84859.0,84858.0,0.3009671]
[1741969124270,0.0184823,84859.0,84858.0,0.2979671]
[1741969124695,0.0184823,84859.0,84858.0,0.3029671]
[1741969125976,0.0184823,84859.0,84858.0,0.3079671]
[1741969127615,0.4139,84871.0,84870.0,0.247436]
[1741969127827,0.4139,84871.0,84870.0,0.26904873]
[1741969128618,0.74824,84894.0,84893.0,0.247369]
[1741969128792,0.00872933,84895.0,84894.0,0.247366]
[1741969129031,0.013593,84896.0,84895.0,0.247364]
[1741969129235,0.00058607,84896.0,84895.0,0.2978601]
[1741969129808,0.00058607,84896.0,84895.0,0.2860811]
[1741969130009,0.01405711,84896.0,84895.0,0.2978601]
[1741969130213,0.00058607,84896.0,84895.0,0.2978601]
[1741969130421,0.00058607,84896.0,84895.0,0.0504961]
[1741969130622,0.00058607,84896.0,84895.0,0.2860811]
[1741969131043,0.01906088,84896.0,84895.0,0.2860811]
[1741969132277,0.01906088,84896.0,84895.0,0.0504961]
[1741969132439,0.03244844,84896.0,84895.0,0.2860811]
[1741969133271,0.01397363,84896.0,84895.0,0.2860811]
[1741969133645,0.01397363,84896.0,84895.0,0.2978601]
[1741969135786,0.00058607,84896.0,84895.0,0.2978601]
[1741969136600,0.00058607,84896.0,84895.0,0.2998601]
[1741969138340,0.00058607,84896.0,84895.0,0.3018601]
[1741969140359,7e-08,84896.0,84895.0,0.3807601]
[1741969140940,7e-08,84896.0,84895.0,0.3787601]
[1741969141094,7e-08,84896.0,84895.0,1.8767601]
[1741969141295,7e-08,84896.0,84895.0,1.8827601]
[1741969141504,7e-08,84896.0,84895.0,2.0299601]
[1741969142018,7e-08,84896.0,84895.0,2.0269601]
[1741969142227,7e-08,84896.0,84895.0,2.0329601]
[1741969142593,7e-08,84896.0,84895.0,2.0299601]
[1741969142790,7e-08,84896.0,84895.0,0.006]
[1741969143003,0.54736107,84896.0,84895.0,0.012]
[1741969143202,0.56378702,84896.0,84895.0,0.012]
[1741969143465,0.59680198,84896.0,84895.0,0.012]
[1741969143865,0.34944098,84896.0,84895.0,0.006]
[1741969144093,0.59680198,84896.0,84895.0,0.001]
[1741969144268,0.33490013,84896.0,84895.0,0.236585]
[1741969144609,0.33490013,84896.0,84895.0,0.001]
[1741969144810,0.57048213,84896.0,84895.0,0.001]
[1741969145022,0.58226113,84896.0,84895.0,0.001]
[1741969146179,0.58226113,84896.0,84895.0,0.0013388]
[1741969146379,0.58243053,84896.0,84895.0,0.0013388]
[1741969146787,0.235624,84881.0,84878.0,0.235631]
[1741969146985,0.235624,84881.0,84865.0,0.10425443]
[1741969146986,0.235637,84876.0,84869.0,0.011782]
[1741969147187,0.247417,84877.0,84872.0,0.235648]
[1741969147386,0.3,84880.0,84875.0,0.235639]
[1741969147591,0.235629,84879.0,84875.0,0.235639]
[1741969147941,0.235629,84879.0,84876.0,0.235637]
[1741969148140,0.535627,84880.0,84878.0,0.238631]
[1741969148343,0.235629,84879.0,84878.0,0.003]
[1741969148485,0.3,84881.0,84880.0,0.235626]
[1741969148700,0.01693801,84896.0,84895.0,0.247364]
[1741969148941,0.00016947,84896.0,84895.0,0.247364]
[1741969150207,0.01864268,84896.0,84895.0,0.247364]
[1741969150858,0.01864268,84896.0,84895.0,0.251364]
[1741969151600,0.01864268,84896.0,84895.0,0.247364]
[1741969151820,0.01864268,84896.0,84895.0,0.252364]
[1741969152562,0.01864268,84896.0,84895.0,0.256364]
[1741969154451,0.01864268,84896.0,84895.0,0.252364]
[1741969155154,0.01864268,84896.0,84895.0,0.256364]
[1741969158465,0.01864268,84896.0,84895.0,0.244585]
[1741969158673,0.33042168,84896.0,84895.0,0.009]
[1741969158873,0.58054453,84896.0,84895.0,0.009]
[1741969159015,0.58054453,84896.0,84895.0,0.0003388]
[1741969160152,0.01864268,84896.0,84895.0,0.2497028]
[1741969160552,0.01864268,84896.0,84895.0,0.0023388]
[1741969160753,0.25422468,84896.0,84895.0,0.0033388]
[1741969160954,0.56600368,84896.0,84895.0,0.0033388]
[1741969161156,0.58054453,84896.0,84895.0,0.0033388]
[1741969161361,0.01864268,84896.0,84895.0,0.0003388]
[1741969161702,0.01864268,84896.0,84895.0,0.02893228]
[1741969161919,0.01864268,84896.0,84895.0,0.0053388]
[1741969161920,0.25422468,84896.0,84895.0,0.0053388]
[1741969162124,0.58054453,84896.0,84895.0,0.0033388]
[1741969162442,0.58254453,84896.0,84895.0,0.0033388]
[1741969162867,0.58254453,84896.0,84895.0,0.0003388]
[1741969163159,0.58254453,84896.0,84895.0,0.0013388]
[1741969163504,0.56407132,84896.0,84895.0,0.0003388]
[1741969163969,0.97897132,84896.0,84895.0,0.0003388]
[1741969164574,0.97697132,84896.0,84895.0,0.0003388]
[1741969165075,0.97797132,84896.0,84895.0,0.0003388]
[1741969166216,0.97797132,84896.0,84886.0,0.23561]
[1741969166217,0.3,84889.0,84886.0,0.2139478]
[1741969166419,0.3,84889.0,84887.0,0.235606]
[1741969166567,0.41606947,84896.0,84895.0,0.247364]
[1741969167174,0.41506947,84896.0,84895.0,0.247364]
[1741969167381,4.7e-07,84896.0,84895.0,0.247364]
[1741969167581,8.7e-07,84899.0,84898.0,0.247354]
[1741969167784,0.00012574,84899.0,84898.0,0.29806805]
[1741969168165,0.00012574,84899.0,84898.0,0.28629005]
[1741969168598,0.00012574,84899.0,84897.0,0.235578]
[1741969168799,0.01466659,84899.0,84895.0,0.002]
[1741969168980,0.235577,84898.0,84895.0,0.002]
[1741969169179,0.02644459,84899.0,84895.0,0.235584]
[1741969169389,0.02644459,84899.0,84894.0,0.235587]
[1741969169390,0.56201859,84899.0,84894.0,0.235587]
[1741969169591,0.56201859,84899.0,84895.0,0.002]
[1741969169791,0.235577,84898.0,84894.0,0.235587]
[1741969170271,0.235581,84897.0,84894.0,0.235587]
[1741969170402,0.247355,84898.0,84894.0,0.235587]
[1741969170599,0.56301859,84899.0,84895.0,0.235584]
[1741969170822,0.56401859,84899.0,84895.0,0.235584]
[1741969171026,0.56401859,84899.0,84892.0,0.235592]
[1741969171027,0.01566659,84899.0,84897.0,0.247355]
[1741969171234,0.01566659,84899.0,84897.0,0.235577]
[1741969171433,0.02744459,84899.0,84892.0,0.235592]
[1741969171614,0.26301859,84899.0,84895.0,0.235584]
[1741969171835,0.235579,84898.0,84894.0,0.235587]
[1741969172418,0.25024059,84899.0,84895.0,0.235585]
[1741969172789,0.00012574,84899.0,84898.0,0.011778]
[1741969173261,0.00012574,84899.0,84897.0,0.235579]
[1741969173402,0.01859957,84899.0,84898.0,0.011778]
[1741969173600,0.01859957,84899.0,84896.0,0.235579]
[1741969173807,0.01959957,84899.0,84893.0,0.23559]
[1741969174012,0.247357,84897.0,84891.0,0.235594]
[1741969174210,0.235585,84895.0,84891.0,0.235594]
[1741969174414,0.235585,84895.0,84885.0,0.01178]
[1741969174415,0.23559,84893.0,84890.0,0.235598]
[1741969174696,0.235587,84894.0,84891.0,0.235595]
[1741969174873,0.235579,84897.0,84890.0,0.235598]
[1741969175020,0.235579,84897.0,84893.0,0.001]
[1741969175374,0.235587,84894.0,84893.0,0.001]
[1741969175753,0.247358,84897.0,84893.0,0.001]
[1741969175953,0.011778,84898.0,84894.0,0.235587]
[1741969175954,0.247355,84898.0,84894.0,0.235587]
[1741969176307,0.235587,84894.0,84893.0,0.001]
[1741969176480,0.26189785,84898.0,84894.0,0.235587]
[1741969176680,0.01454085,84898.0,84897.0,0.235577]
[1741969177119,0.01859957,84899.0,84898.0,0.235576]
[1741969177319,0.01859957,84899.0,84897.0,0.235579]
[1741969177479,0.01859957,84899.0,84898.0,0.235576]
[1741969178380,0.01454085,84898.0,84872.0,0.082]
[1741969178603,0.3,84876.0,84869.0,0.011782]
[1741969178940,0.3,84876.0,84875.0,0.2359788]
[1741969179490,0.235603,84889.0,84875.0,0.2359788]
[1741969179491,0.31454085,84890.0,84883.0,0.01178]
[1741969179835,0.31454085,84890.0,84882.0,0.011781]
[1741969180005,0.55014385,84889.0,84881.0,0.011781]
[1741969180213,0.55014385,84889.0,84885.0,0.23561]
[1741969180412,0.01454085,84887.0,84885.0,0.235611]
[1741969180595,0.3,84884.0,84882.0,0.23562]